fUST/lending_fUST_20250704
["ID","MTS","AMOUNT","RATE_DAILY","PERIOD"]
[369551286,1751619046673,-460.0,0.00016438,2]
[369551288,1751619046683,-460.0,0.00016438,2]
[369551289,1751619046692,-197.1761681,0.00016438,2]
[369551290,1751619046703,-256.6425437,0.00016438,2]
[369554857,1751619167133,900.0,0.00013424,2]
[369554858,1751619168696,900.0,0.00014794,2]
[369554859,1751619297515,3729.1228319,0.00014662,2]
[369554860,1751619341935,500.0,0.00027397,120]
[369554861,1751619359336,664.0,0.00027397,120]
[369554862,1751619365733,-491.2893682,0.00015313,2]
[369554863,1751619373427,-720.7568123,0.00015313,2]
[369554864,1751619377150,-171.327517,0.00015312,2]
[369554865,1751619496392,5000.0,0.000153,2]
[369554866,1751619512014,1076.70493186,0.000153,2]
[369554867,1751619512826,-166.19655764,0.000153,2]
[369554868,1751619519963,1000.0,0.00027,120]
[369554869,1751619592810,-310.72936752,0.00015231,2]
[369554870,1751619596711,-159.93446909,0.00015231,2]
[369554871,1751619599246,-169.57101679,0.00015231,2]
[369554872,1751619601711,-178.53683612,0.00015231,2]
[369554873,1751619605575,-300.0,0.0001523,2]
[369554874,1751619605602,-6011.75943589,0.00015231,2]
[369554875,1751619607225,-175.29254862,0.00015231,2]
[369554876,1751619610942,-157.48561556,0.00015231,2]
[369554877,1751619612773,-151.26290149,0.00015231,2]
[369554878,1751619616540,-500.0,0.00015231,2]
[369554879,1751619618650,-267.98161734,0.00015231,2]
[369554880,1751619620512,-388.78600837,0.00015231,2]
[369554881,1751619624491,-526.02709462,0.00015231,2]
[369554882,1751619626781,-210.14815799,0.00015231,2]
[369554883,1751619629504,-177.54706761,0.00015231,2]
[369554884,1751619631310,-161.73222283,0.00015231,2]
[369554885,1751619637985,-154.36109014,0.00015231,2]
[369554886,1751619641332,-300.0,0.00015231,2]
[369554887,1751619644169,-172.73810845,0.00015231,2]
[369554888,1751619649259,-163.578,0.00015231,2]
[369554889,1751619652722,-181.30013109,0.00015231,2]
[369554890,1751619678225,185.68780811,0.00014774,2]
[369554891,1751619701298,5000.0,0.0001501,2]
[369554892,1751619705289,171.66922,0.00014662,2]
[369554893,1751619715484,-151.58572632,0.00015183,2]
[369554894,1751619716906,5000.0,0.0001501,2]
[369554895,1751619717907,-170.66417123,0.00015183,2]
[369554896,1751619720749,-168.0,0.00015183,2]
[369554897,1751619724864,-160.0,0.00015183,2]
[369554899,1751619727272,-196.71165683,0.00015183,2]
[369554900,1751619732198,5000.0,0.0001501,2]
[369554901,1751619740378,-177.19887756,0.00015183,2]
[369554903,1751619747706,5000.0,0.0001501,2]
[369554904,1751619754447,-224.4037997,0.00015183,2]
[369554905,1751619762882,1670.37840367,0.0001501,2]
[369554906,1751619770788,-156.37862073,0.00015183,2]
[369554908,1751619785506,-622.18411809,0.00015183,2]
[369554909,1751619800438,-193.72969765,0.00015183,2]
[369554910,1751619810095,193.72969765,0.0001501,2]
[369554911,1751619814223,-326.38455765,0.00015183,2]
[369554912,1751619816955,239.90129806,0.0001501,2]
[369554913,1751619826580,326.38455765,0.0001501,2]
[369554914,1751619829829,-193.72969765,0.00015183,2]
[369554915,1751619844989,-177.90158147,0.00015183,2]
[369554916,1751619955731,-270.60269322,0.00015162,2]
[369554917,1751619956182,368.562305,0.00013699,2]
[369554919,1751619962895,270.60269322,0.0001501,2]
[369555051,1751620141396,222.23456117,0.0001501,2]
[369555056,1751620168788,-203.63127912,0.00015083,2]
[369555057,1751620195687,764.71,0.00027397,120]
[369555059,1751620232363,-981.56283912,0.00015162,2]
[369555369,1751620240874,-420.35281783,0.00015162,2]
[369555371,1751620240883,-300.0,0.00015182,2]
[369555373,1751620240893,-314.0,0.00015182,2]
[369555375,1751620240902,-6241.23545297,0.00015183,2]
[369555607,1751620243502,-293.00176164,0.00015183,2]
[369555609,1751620243514,-546.89028051,0.00015183,2]
[369555611,1751620243523,-220.46130246,0.00015183,2]
[369555613,1751620243533,-12901.4082347,0.00015198,2]
[369555615,1751620243542,-14381.22831048,0.00015231,2]
[369555617,1751620243553,-1605.535414,0.00015262,2]
[369555619,1751620243562,-170.12738892,0.0001553,2]
[369555621,1751620243571,-207.4,0.00015589,2]
[369555623,1751620243581,-500.0,0.00015807,2]
[369555625,1751620243590,-1509.94023751,0.00015906,2]
[369555627,1751620243599,-168.0,0.00015906,2]
[369555629,1751620243609,-426.31857903,0.00015945,2]
[369555631,1751620243618,-8482.87585258,0.0001601,2]
[369555633,1751620243627,-360.081139,0.00016109,2]
[369555635,1751620243637,-900.0,0.00016164,2]
[369555637,1751620243647,-454.07128416,0.00016338,2]
[369555639,1751620243656,-500.0,0.00016427,2]
[369555641,1751620243665,-500.0,0.00016427,2]
[369555643,1751620243673,-547.88848922,0.00016427,2]
[369555645,1751620243683,-159.725693,0.00016427,2]
[369555647,1751620243694,-500.0,0.00016427,2]
[369555649,1751620243704,-366.78,0.00016428,3]
[369555651,1751620243713,-183.39,0.00016428,3]
[369555653,1751620243722,-550.2,0.00016428,3]
[369555655,1751620243733,-644.28,0.00016428,3]
[369555657,1751620243742,-318.96424869,0.00016437,2]
[369555659,1751620243751,-305.85269755,0.00016437,2]
[369555661,1751620243760,-460.0,0.00016438,2]
[369555663,1751620243770,-460.0,0.00016438,2]
[369555665,1751620243780,-460.0,0.00016438,2]
[369555667,1751620243789,-460.0,0.00016438,2]
[369555669,1751620243799,-460.0,0.00016438,2]
[369555671,1751620243808,-559.88049721,0.00016438,2]
[369555673,1751620243817,-500.0,0.00016438,2]
[369555675,1751620243827,-248.4592784,0.00016438,2]
[369555677,1751620243837,-460.0,0.00016438,2]
[369555679,1751620243846,-460.0,0.00016438,2]
[369555681,1751620243855,-460.0,0.00016438,2]
[369555683,1751620243865,-460.0,0.00016438,2]
[369555685,1751620243875,-460.0,0.00016438,2]
[369555687,1751620243884,-151.0,0.00016438,2]
[369555689,1751620243893,-460.0,0.00016438,2]
[369555691,1751620243903,-151.0,0.00016438,2]
[369555693,1751620243912,-184.76401826,0.00016438,2]
[369555696,1751620243925,-275.23598174,0.00016438,2]
[369555698,1751620243934,-460.0,0.00016438,2]
[369555700,1751620243943,-151.0,0.00016438,2]
[369555702,1751620243952,-460.0,0.00016438,2]
[369555704,1751620243961,-151.0,0.00016438,2]
[369555706,1751620243970,-518.91426055,0.00016438,2]
[369555708,1751620243979,-460.0,0.00016438,2]
[369555710,1751620243988,-151.0,0.00016438,2]
[369555712,1751620243998,-284.90116792,0.00016438,2]
[369555714,1751620244007,-460.0,0.00016438,2]
[369555715,1751620244019,-151.0,0.00016438,2]
[369555717,1751620244028,-151.0,0.00016438,2]
[369555719,1751620244038,-151.0,0.00016438,2]
[369555722,1751620244048,-177.365344,0.00016438,2]
[369555723,1751620244057,-151.0,0.00016438,2]
[369555725,1751620244067,-151.0,0.00016438,2]
[369555727,1751620244076,-151.0,0.00016438,2]
[369555729,1751620244085,-151.0,0.00016438,2]
[369555733,1751620244105,-151.0,0.00016438,2]
[369555735,1751620244115,-460.0,0.00016438,2]
[369555737,1751620244124,-460.0,0.00016438,2]
[369555739,1751620244133,-460.0,0.00016438,2]
[369555741,1751620244143,-151.0,0.00016438,2]
[369555743,1751620244152,-151.0,0.00016438,2]
[369555745,1751620244162,-169.417198,0.00016438,2]
[369555747,1751620244171,-65.70762131,0.00016438,2]
[369555965,1751620246325,-103.70957669,0.00016438,2]
[369555967,1751620246335,-169.417198,0.00016438,2]
[369555969,1751620246344,-169.417198,0.00016438,2]
[369555971,1751620246354,-289.773502,0.00016438,2]
[369555973,1751620246363,-460.0,0.00016438,2]
[369555975,1751620246373,-151.0,0.00016438,2]
[369555977,1751620246382,-151.0,0.00016438,2]
[369555980,1751620246392,-460.0,0.00016438,2]
[369555982,1751620246403,-151.0,0.00016438,2]
[369555984,1751620246413,-151.0,0.00016438,2]
[369555986,1751620246423,-461.15850536,0.00016438,2]
[369555988,1751620246432,-210.22918421,0.00016438,2]
[369555991,1751620246451,-249.77081579,0.00016438,2]
[369555993,1751620246460,-151.0,0.00016438,2]
[369555995,1751620246469,-151.0,0.00016438,2]
[369555997,1751620246479,-460.0,0.00016438,2]
[369555999,1751620246488,-151.0,0.00016438,2]
[369556001,1751620246497,-151.973693,0.00016438,2]
[369556003,1751620246506,-500.0,0.00016438,2]
[369556005,1751620246515,-500.0,0.00016438,2]
[369556007,1751620246524,-500.0,0.00016438,2]
[369556009,1751620246533,-501.12227595,0.00016438,2]
[369556011,1751620246542,-460.0,0.00016438,2]
[369556013,1751620246551,-460.0,0.00016438,2]
[369556015,1751620246560,-151.0,0.00016438,2]
[369556017,1751620246570,-460.0,0.00016438,2]
[369556019,1751620246579,-460.0,0.00016438,2]
[369556021,1751620246588,-460.0,0.00016438,2]
[369556023,1751620246598,-613.23724266,0.00016438,2]
[369556025,1751620246607,-151.0,0.00016438,2]
[369556027,1751620246616,-151.0,0.00016438,2]
[369556029,1751620246626,-635.86,0.00016438,2]
[369556031,1751620246635,-253.2318598,0.00016438,2]
[369556033,1751620246644,-37.6793775,0.00016438,2]
[369556035,1751620246656,-422.3206225,0.00016438,2]
[369556037,1751620246666,-460.0,0.00016438,2]
[369556039,1751620246675,-240.12729686,0.00016438,2]
[369556043,1751620246703,-219.87270314,0.00016438,2]
[369556045,1751620246712,-449.2556497,0.00016438,2]
[369556932,1751620353130,600.0,0.00013424,2]
[369556933,1751620354279,600.0,0.00014794,2]
[369556980,1751621224708,374.556772,0.00013699,2]
[369556990,1751621335077,388.8156532,0.00014434,2]
[369556991,1751621344604,5321.7889793,0.00014434,2]
[369556997,1751621386945,1000.0,0.0002465,60]
[369557003,1751621432492,-487.98390887,0.00015158,2]
[369557005,1751621432502,-1207.219018,0.00015311,2]
[369557007,1751621432512,-1007.0,0.00015316,2]
[369557009,1751621432521,-300.0,0.00015316,2]
[369557011,1751621432531,-10000.0,0.00015317,2]
[369557013,1751621432540,-24900.0,0.0001534,2]
[369557015,1751621432551,-1234.10888996,0.00015489,2]
[369557017,1751621432560,-207.4,0.00015589,2]
[369557019,1751621432569,-196.70607399,0.00015945,2]
[369557021,1751621432578,-308.640976,0.00016109,2]
[369557023,1751621432587,-600.0,0.00016164,2]
[369557025,1751621432597,-6238.52926089,0.00016164,2]
[369557027,1751621432607,-500.0,0.00016335,2]
[369557029,1751621432616,-500.0,0.00016335,2]
[369557031,1751621432626,-500.0,0.00016335,2]
[369557033,1751621432636,-177.67091505,0.00016335,2]
[369557035,1751621432645,-500.0,0.00016335,2]
[369557037,1751621432654,-500.0,0.00016335,2]
[369557039,1751621432663,-500.0,0.00016335,2]
[369557041,1751621432672,-500.0,0.00016335,2]
[369557043,1751621432680,-500.0,0.00016335,2]
[369557045,1751621432690,-444.33860655,0.00016335,2]
[369557047,1751621432700,-518.81947545,0.00016335,2]
[369557049,1751621432709,-500.0,0.00016335,2]
[369557050,1751621432718,-87.9154155,0.00016335,2]
[369557088,1751621438876,-412.0845845,0.00016335,2]
[369557089,1751621438886,-500.0,0.00016335,2]
[369557090,1751621438899,-286.21754775,0.00016335,2]
[369557091,1751621438909,-500.0,0.00016335,2]
[369557092,1751621438919,-166.43708335,0.00016335,2]
[369557093,1751621438929,-500.0,0.00016335,2]
[369557094,1751621438938,-363.25702736,0.00016338,2]
[369557095,1751621438948,-9645.21698186,0.00016338,2]
[369557096,1751621438959,-293.49,0.00016428,3]
[369557097,1751621438968,-538.06,0.00016428,3]
[369557098,1751621438979,-269.03,0.00016428,3]
[369557099,1751621438989,-807.09,0.00016428,3]
[369557100,1751621439000,-535.85404095,0.00016437,2]
[369557101,1751621439009,-178.056,0.00016437,2]
[369557102,1751621439020,-460.0,0.00016438,2]
[369557103,1751621439029,-1000.0,0.00016438,2]
[369557104,1751621439040,-460.0,0.00016438,2]
[369557105,1751621439052,-438.84183539,0.00016438,2]
[369557106,1751621439062,-240.916957,0.00016438,2]
[369557107,1751621439071,-460.0,0.00016438,2]
[369557108,1751621439082,-151.877311,0.00016438,2]
[369557109,1751621439093,-460.0,0.00016438,2]
[369557110,1751621439103,-460.0,0.00016438,2]
[369557111,1751621439112,-460.0,0.00016438,2]
[369557112,1751621439122,-460.0,0.00016438,2]
[369557113,1751621439131,-460.0,0.00016438,2]
[369557114,1751621439141,-460.0,0.00016438,2]
[369557115,1751621439151,-460.0,0.00016438,2]
[369557116,1751621439161,-460.77565706,0.00016438,2]
[369557117,1751621439171,-460.0,0.00016438,2]
[369557118,1751621439180,-452.3345428,0.00016438,2]
[369557119,1751621439189,-460.0,0.00016438,2]
[369557120,1751621439199,-460.0,0.00016438,2]
[369557121,1751621439209,-460.0,0.00016438,2]
[369557122,1751621439219,-151.0,0.00016438,2]
[369557123,1751621439231,-151.0,0.00016438,2]
[369557124,1751621439240,-151.0,0.00016438,2]
[369557125,1751621439251,-460.0,0.00016438,2]
[369557126,1751621439261,-460.0,0.00016438,2]
[369557127,1751621439272,-461.49991213,0.00016438,2]
[369557128,1751621439281,-399.808364,0.00016438,2]
[369557129,1751621439290,-399.808364,0.00016438,2]
[369557130,1751621439300,-399.808364,0.00016438,2]
[369557131,1751621439309,-399.808364,0.00016438,2]
[369557132,1751621439318,-399.808364,0.00016438,2]
[369557133,1751621439328,-399.808364,0.00016438,2]
[369557134,1751621439339,-217.82575703,0.00016438,2]
[369557135,1751621439352,-460.0,0.00016438,2]
[369557136,1751621439361,-460.0,0.00016438,2]
[369557137,1751621439372,-153.681075,0.00016438,2]
[369557138,1751621439381,-462.02124659,0.00016438,2]
[369557139,1751621439391,-173.55992321,0.00016438,2]
[369557140,1751621439400,-476.38906068,0.00016438,2]
[369557141,1751621439410,-460.0,0.00016438,2]
[369557142,1751621439420,-353.24325202,0.00016438,2]
[369557143,1751621439430,-460.0,0.00016438,2]
[369557144,1751621439440,-368.97961122,0.00016438,2]
[369557145,1751621439449,-151.0,0.00016438,2]
[369557146,1751621439458,-460.0,0.00016438,2]
[369557147,1751621439468,-151.0,0.00016438,2]
[369557148,1751621439478,-151.0,0.00016438,2]
[369557149,1751621439487,-151.0,0.00016438,2]
[369557150,1751621439497,-460.0,0.00016438,2]
[369557151,1751621439507,-460.0,0.00016438,2]
[369557152,1751621439517,-460.0,0.00016438,2]
[369557153,1751621439528,-460.0,0.00016438,2]
[369557154,1751621439538,-460.0,0.00016438,2]
[369557155,1751621439547,-460.0,0.00016438,2]
[369557156,1751621439558,-460.0,0.00016438,2]
[369557157,1751621439567,-460.0,0.00016438,2]
[369557158,1751621439577,-460.0,0.00016438,2]
[369557159,1751621439588,-606.07191659,0.00016438,2]
[369557160,1751621439598,-500.0,0.00016438,2]
[369557161,1751621439608,-522.70218442,0.00016438,2]
[369557162,1751621439618,-460.0,0.00016438,2]
[369557163,1751621439627,-151.0,0.00016438,2]
[369557164,1751621439638,-460.0,0.00016438,2]
[369557165,1751621439649,-460.0,0.00016438,2]
[369557166,1751621439659,-460.0,0.00016438,2]
[369557167,1751621439669,-460.0,0.00016438,2]
[369557168,1751621439679,-461.57974771,0.00016438,2]
[369557169,1751621439689,-151.0,0.00016438,2]
[369557170,1751621439699,-151.0,0.00016438,2]
[369557171,1751621439709,-151.0,0.00016438,2]
[369557172,1751621439719,-460.0,0.00016438,2]
[369557173,1751621439728,-460.0,0.00016438,2]
[369557174,1751621439738,-460.0,0.00016438,2]
[369557175,1751621439748,-460.0,0.00016438,2]
[369557176,1751621439757,-151.0,0.00016438,2]
[369557177,1751621439767,-151.0,0.00016438,2]
[369557178,1751621439777,-151.0,0.00016438,2]
[369557179,1751621439786,-151.0,0.00016438,2]
[369557180,1751621439795,-460.0,0.00016438,2]
[369557181,1751621439806,-460.0,0.00016438,2]
[369557182,1751621439818,-460.0,0.00016438,2]
[369557183,1751621439829,-460.0,0.00016438,2]
[369557184,1751621439839,-241.51884292,0.00016438,2]
[369557185,1751621439849,-460.0,0.00016438,2]
[369557186,1751621439859,-460.0,0.00016438,2]
[369557187,1751621439869,-497.15121706,0.00016438,2]
[369557188,1751621439878,-460.0,0.00016438,2]
[369557189,1751621439888,-460.0,0.00016438,2]
[369557190,1751621439898,-460.0,0.00016438,2]
[369557191,1751621439908,-460.0,0.00016438,2]
[369557192,1751621439917,-473.43645387,0.00016438,2]
[369557193,1751621439927,-460.0,0.00016438,2]
[369557194,1751621439936,-460.0,0.00016438,2]
[369557195,1751621439946,-460.0,0.00016438,2]
[369557196,1751621439956,-288.66370455,0.00016438,2]
[369557197,1751621439965,-605.03220944,0.00016438,2]
[369557198,1751621439974,-462.69084439,0.00016438,2]
[369557199,1751621439984,-460.0,0.00016438,2]
[369557200,1751621439993,-460.0,0.00016438,2]
[369557201,1751621440003,-237.38976658,0.00016438,2]
[369557202,1751621440013,-505.80399705,0.00016438,2]
[369557203,1751621440025,-536.8634431,0.00016438,2]
[369557204,1751621440038,-460.0,0.00016438,2]
[369557205,1751621440051,-453.57560363,0.00016438,2]
[369557206,1751621440060,-460.0,0.00016438,2]
[369557207,1751621440071,-460.0,0.00016438,2]
[369557208,1751621440082,-460.0,0.00016438,2]
[369557209,1751621440091,-460.0,0.00016438,2]
[369557210,1751621440101,-460.0,0.00016438,2]
[369557211,1751621440110,-460.0,0.00016438,2]
[369557212,1751621440120,-460.0,0.00016438,2]
[369557213,1751621440131,-586.34131155,0.00016438,2]
[369557214,1751621440140,-460.0,0.00016438,2]
[369557215,1751621440150,-460.0,0.00016438,2]
[369557216,1751621440160,-460.0,0.00016438,2]
[369557217,1751621440170,-460.0,0.00016438,2]
[369557218,1751621440179,-460.9757821,0.00016438,2]
[369557219,1751621440189,-460.0,0.00016438,2]
[369557220,1751621440199,-460.0,0.00016438,2]
[369557221,1751621440208,-460.0,0.00016438,2]
[369557222,1751621440218,-460.0,0.00016438,2]
[369557223,1751621440228,-201.106444,0.00016438,2]
[369557225,1751621440238,-460.0,0.00016438,2]
[369557227,1751621440247,-460.0,0.00016438,2]
[369557228,1751621440256,-480.43443942,0.00016438,2]
[369557229,1751621440265,-460.0,0.00016438,2]
[369557230,1751621440274,-460.0,0.00016438,2]
[369557231,1751621440284,-460.0,0.00016438,2]
[369557232,1751621440294,-460.0,0.00016438,2]
[369557233,1751621440304,-460.0,0.00016438,2]
[369557234,1751621440316,-460.0,0.00016438,2]
[369557235,1751621440326,-460.0,0.00016438,2]
[369557236,1751621440335,-460.0,0.00016438,2]
[369557237,1751621440344,-460.0,0.00016438,2]
[369557238,1751621440354,-460.30248713,0.00016438,2]
[369557239,1751621440363,-460.0,0.00016438,2]
[369557240,1751621440373,-460.0,0.00016438,2]
[369557241,1751621440383,-464.01989695,0.00016438,2]
[369557244,1751621440526,-151.0,0.00016438,2]
[369557246,1751621440537,-151.0,0.00016438,2]
[369557248,1751621440547,-577.76238213,0.00016438,2]
[369557250,1751621440557,-158.749993,0.00016438,2]
[369557252,1751621440567,-460.0,0.00016438,2]
[369557254,1751621440577,-151.0,0.00016438,2]
[369557256,1751621440586,-151.0,0.00016438,2]
[369557258,1751621440595,-151.0,0.00016438,2]
[369557260,1751621440605,-151.0,0.00016438,2]
[369557262,1751621440615,-151.0,0.00016438,2]
[369557264,1751621440624,-151.0,0.00016438,2]
[369557267,1751621440634,-151.0,0.00016438,2]
[369557269,1751621440643,-151.0,0.00016438,2]
[369557270,1751621440652,-151.0,0.00016438,2]
[369557272,1751621440661,-153.137,0.00016438,2]
[369557274,1751621440671,-460.0,0.00016438,2]
[369557276,1751621440680,-460.0,0.00016438,2]
[369557279,1751621440690,-460.0,0.00016438,2]
[369557281,1751621440700,-460.0,0.00016438,2]
[369557283,1751621440709,-460.0,0.00016438,2]
[369557285,1751621440719,-163.6692967,0.00016438,2]
[369557287,1751621440729,-460.0,0.00016438,2]
[369557289,1751621440739,-460.0,0.00016438,2]
[369557291,1751621440748,-400.64600211,0.00016438,2]
[369557293,1751621440758,-151.0,0.00016438,2]
[369557295,1751621440767,-151.0,0.00016438,2]
[369557297,1751621440776,-151.0,0.00016438,2]
[369557299,1751621440785,-151.0,0.00016438,2]
[369557301,1751621440795,-151.0,0.00016438,2]
[369557303,1751621440804,-460.0,0.00016438,2]
[369557305,1751621440815,-194.317524,0.00016438,2]
[369557307,1751621440824,-460.0,0.00016438,2]
[369557309,1751621440834,-460.0,0.00016438,2]
[369557311,1751621440843,-151.0,0.00016438,2]
[369557313,1751621440852,-151.0,0.00016438,2]
[369557315,1751621440862,-151.0,0.00016438,2]
[369557317,1751621440871,-151.0,0.00016438,2]
[369557319,1751621440880,-191.410658,0.00016438,2]
[369557321,1751621440889,-460.0,0.00016438,2]
[369557323,1751621440898,-460.0,0.00016438,2]
[369557325,1751621440907,-307.604169,0.00016438,2]
[369557327,1751621440916,-151.0,0.00016438,2]
[369557329,1751621440926,-151.0,0.00016438,2]
[369557331,1751621440935,-273.224768,0.00016438,2]
[369557333,1751621440945,-460.0,0.00016438,2]
[369557335,1751621440954,-460.0,0.00016438,2]
[369557337,1751621440963,-460.0,0.00016438,2]
[369557339,1751621440972,-460.0,0.00016438,2]
[369557341,1751621440982,-460.0,0.00016438,2]
[369557343,1751621440991,-460.0,0.00016438,2]
[369557345,1751621441000,-460.0,0.00016438,2]
[369557347,1751621441010,-517.33786576,0.00016438,2]
[369557349,1751621441020,-460.0,0.00016438,2]
[369557351,1751621441031,-162.81480707,0.00016438,2]
[369557353,1751621441040,-1077.356,0.00016438,2]
[369557355,1751621441054,-460.0,0.00016438,2]
[369557357,1751621441063,-460.0,0.00016438,2]
[369557359,1751621441073,-460.0,0.00016438,2]
[369557361,1751621441082,-443.87033446,0.00016438,2]
[369557363,1751621441092,-460.0,0.00016438,2]
[369557365,1751621441101,-460.0,0.00016438,2]
[369557367,1751621441111,-460.0,0.00016438,2]
[369557369,1751621441120,-460.0,0.00016438,2]
[369557371,1751621441130,-462.21282364,0.00016438,2]
[369557373,1751621441139,-460.0,0.00016438,2]
[369557375,1751621441149,-151.0,0.00016438,2]
[369557377,1751621441158,-151.0,0.00016438,2]
[369557379,1751621441167,-151.0,0.00016438,2]
[369557381,1751621441176,-460.0,0.00016438,2]
[369557383,1751621441185,-223.44096,0.00016438,2]
[369557385,1751621441195,-283.21793247,0.00016438,2]
[369557387,1751621441204,-460.0,0.00016438,2]
[369557389,1751621441214,-460.0,0.00016438,2]
[369557391,1751621441223,-460.0,0.00016438,2]
[369557393,1751621441232,-460.0,0.00016438,2]
[369557395,1751621441241,-634.37,0.00016438,2]
[369557397,1751621441250,-460.0,0.00016438,2]
[369557399,1751621441260,-463.45030882,0.00016438,2]
[369557401,1751621441270,-460.0,0.00016438,2]
[369557403,1751621441280,-460.0,0.00016438,2]
[369557405,1751621441289,-460.0,0.00016438,2]
[369557407,1751621441298,-460.0,0.00016438,2]
[369557409,1751621441308,-178.85321617,0.00016438,2]
[369557411,1751621441318,-460.0,0.00016438,2]
[369557413,1751621441327,-460.0,0.00016438,2]
[369557415,1751621441337,-460.0,0.00016438,2]
[369557417,1751621441347,-151.0,0.00016438,2]
[369557419,1751621441357,-275.004872,0.00016438,2]
[369557421,1751621441366,-460.0,0.00016438,2]
[369557423,1751621441375,-266.30102736,0.00016438,2]
[369557425,1751621441385,-171.63556201,0.00016438,2]
[369557427,1751621441394,-541.74945493,0.00016438,2]
[369557429,1751621441404,-210.25643716,0.00016438,2]
[369557431,1751621441413,-460.0,0.00016438,2]
[369557433,1751621441422,-460.0,0.00016438,2]
[369557435,1751621441431,-460.0,0.00016438,2]
[369557437,1751621441441,-460.0,0.00016438,2]
[369557439,1751621441450,-151.0,0.00016438,2]
[369557440,1751621441459,-460.0,0.00016438,2]
[369557441,1751621441468,-460.0,0.00016438,2]
[369557442,1751621441478,-460.0,0.00016438,2]
[369557443,1751621441487,-531.64323192,0.00016438,2]
[369557444,1751621441496,-460.0,0.00016438,2]
[369557445,1751621441505,-265.24894632,0.00016438,2]
[369557446,1751621441514,-460.0,0.00016438,2]
[369557447,1751621441523,-461.62982957,0.00016438,2]
[369557448,1751621441531,-461.32742073,0.00016438,2]
[369557449,1751621441541,-460.0,0.00016438,2]
[369557450,1751621441550,-460.0,0.00016438,2]
[369557451,1751621441559,-460.0,0.00016438,2]
[369557452,1751621441568,-460.0,0.00016438,2]
[369557453,1751621441578,-460.0,0.00016438,2]
[369557454,1751621441588,-460.0,0.00016438,2]
[369557455,1751621441597,-465.08229739,0.00016438,2]
[369557456,1751621441606,-460.0,0.00016438,2]
[369557457,1751621441615,-460.0,0.00016438,2]
[369557458,1751621441624,-793.74,0.00016438,2]
[369557459,1751621441633,-460.0,0.00016438,2]
[369557460,1751621441642,-460.0,0.00016438,2]
[369557461,1751621441651,-460.0,0.00016438,2]
[369557462,1751621441660,-460.0,0.00016438,2]
[369557463,1751621441668,-460.0,0.00016438,2]
[369557464,1751621441677,-460.0,0.00016438,2]
[369557465,1751621441687,-460.0,0.00016438,2]
[369557466,1751621441696,-460.0,0.00016438,2]
[369557467,1751621441705,-151.0,0.00016438,2]
[369557468,1751621441714,-460.0,0.00016438,2]
[369557469,1751621441723,-460.0,0.00016438,2]
[369557470,1751621441732,-460.0,0.00016438,2]
[369557471,1751621441741,-460.0,0.00016438,2]
[369557472,1751621441749,-151.0,0.00016438,2]
[369557473,1751621441758,-151.0,0.00016438,2]
[369557474,1751621441767,-151.0,0.00016438,2]
[369557475,1751621441777,-151.0,0.00016438,2]
[369557476,1751621441786,-151.0,0.00016438,2]
[369557477,1751621441796,-151.0,0.00016438,2]
[369557478,1751621441805,-460.36483357,0.00016438,2]